fUSD/lending_fUSD_20250610
["ID","MTS","AMOUNT","RATE_DAILY","PERIOD"]
[365293481,1749583841301,-150.0,0.0001978,2]
[365293482,1749583841310,-755.5832384,0.00019783,2]
[365293483,1749583841318,-200.0,0.00019794,2]
[365293484,1749583841328,-290.07859865,0.00019799,2]
[365293485,1749583841337,-1000.0,0.000198,2]
[365293486,1749583841346,-1000.0,0.000198,2]
[365293487,1749583841355,-1000.0,0.000198,2]
[365293488,1749583841364,-1000.0,0.000198,2]
[365293489,1749583841373,-1404.55475078,0.000198,2]
[365293490,1749583841383,-500.0,0.00019809,2]
[365293491,1749583841392,-11717.92483916,0.0001981,2]
[365293492,1749583841401,-200.0,0.00019819,2]
[365293493,1749583841411,-290.07859865,0.00019819,2]
[365293494,1749583841419,-638.47490402,0.00019825,2]
[365293495,1749583841429,-150.0,0.00019832,2]
[365293496,1749583841438,-290.07859865,0.0001984,2]
[365293497,1749583841447,-1404.55475078,0.0001985,2]
[365293498,1749583841457,-5800.0,0.00019858,2]
[365293499,1749583841466,-290.07859865,0.0001986,2]
[365293500,1749583841476,-200.0,0.00019863,2]
[365293501,1749583841485,-1000.0,0.00019864,2]
[365293502,1749583841494,-150.0,0.00019865,2]
[365293503,1749583841503,-158.54,0.00019869,2]
[365293504,1749583841512,-158.54,0.00019869,2]
[365293505,1749583841521,-1065.0276364,0.00019869,2]
[365293506,1749583841530,-3577.8155294,0.00019869,2]
[365293507,1749583841540,-15878.8344471,0.00019869,2]
[365293508,1749583841550,-755.5832384,0.00019873,2]
[365293509,1749583841559,-500.0,0.00019876,2]
[365293510,1749583841568,-150.0,0.00019877,2]
[365293511,1749583841577,-13302.11861491,0.00019877,2]
[365293512,1749583841586,-150.0,0.00019877,2]
[365293513,1749583841595,-1112.7641155,0.00019877,2]
[365293514,1749583841605,-150.0,0.00019877,2]
[365293515,1749583841617,-15427.54664663,0.00019877,2]
[365293516,1749583841627,-150.0,0.00019877,2]
[365293517,1749583841637,-6015.25348039,0.00019877,2]
[365293518,1749583841646,-151.0,0.00019878,2]
[365293519,1749583841656,-151.0,0.00019878,2]
[365293520,1749583841665,-151.0,0.00019878,2]
[365293521,1749583841674,-158.363146,0.00019878,2]
[365293522,1749583841683,-253.00698,0.00019878,2]
[365293523,1749583841692,-151.0,0.00019878,2]
[365293524,1749583841703,-178.708421,0.00019878,2]
[365293525,1749583841712,-151.0,0.00019878,2]
[365293526,1749583841721,-151.0,0.00019878,2]
[365293527,1749583841730,-151.0,0.00019878,2]
[365293528,1749583841740,-151.0,0.00019878,2]
[365293529,1749583841749,-151.0,0.00019878,2]
[365293530,1749583841758,-151.0,0.00019878,2]
[365293531,1749583841767,-490.32,0.00019878,2]
[365293532,1749583841775,-500.0,0.00019878,2]
[365293533,1749583841784,-500.0,0.00019878,2]
[365293534,1749583841794,-500.0,0.00019878,2]
[365293535,1749583841806,-500.0,0.00019878,2]
[365293536,1749583841815,-500.0,0.00019878,2]
[365293537,1749583841824,-541.1279656,0.00019878,2]
[365293538,1749583841833,-500.0,0.00019878,2]
[365293539,1749583841844,-500.0,0.00019878,2]
[365293540,1749583841855,-500.0,0.00019878,2]
[365293541,1749583841864,-500.0,0.00019878,2]
[365293542,1749583841873,-416.64812817,0.00019878,2]
[365293543,1749583841884,-150896.13088938,0.00019878,2]
[365293544,1749583841900,-1099.7745244,0.00019878,2]
[365293545,1749583841913,-1460.64903847,0.00019878,2]
[365293546,1749583841922,-234.37938575,0.00019879,2]
[365293547,1749583841952,490.0,0.00016438,2]
[365293548,1749583841964,-146.77500163,0.00019879,2]
[365293549,1749583841976,-596941.82791004,0.00019879,2]
[365293550,1749583842005,490.0,0.00016602,2]
[365293551,1749583842018,-3300.55,0.00019879,2]
[365293552,1749583842052,264.06831957,0.00016767,2]
[365293553,1749583842081,490.0,0.00016438,2]
[365293554,1749583842112,490.0,0.00016602,2]
[365293555,1749583842318,490.0,0.00016767,2]
[365293557,1749583842349,480.0,0.00016438,2]
[365293560,1749583842378,490.0,0.00016931,2]
[365293565,1749583842413,490.0,0.00017095,2]
[365293568,1749583842442,290.2,0.0001726,2]
[365293572,1749583842473,202.0,0.00016862,2]
[365293573,1749583842581,543.36,0.00016438,2]
[365293574,1749583842614,-3282.9,0.00018748,2]
[365293575,1749583842672,-47.1,0.00018748,2]
[365293576,1749583842682,-457.29802653,0.00019879,2]
[365293579,1749583842888,-458.42276947,0.00019879,2]
[365293582,1749583842900,-287.1089393,0.00019879,2]
[365293601,1749583843244,480.0,0.00016438,2]
[365293604,1749583844675,490.0,0.00016438,2]
[365293605,1749583844954,490.0,0.00016602,2]
[365293607,1749583845255,226.59,0.00016767,2]
[365293610,1749583845450,480.0,0.00016438,2]
[365293615,1749583853663,-498.98,0.00018246,2]
[365293616,1749583853673,-194.1535,0.00019879,2]
[365293617,1749583853868,480.0,0.00016438,2]
[365293618,1749583854093,490.0,0.00016438,2]
[365293619,1749583854126,490.0,0.00016602,2]
[365293620,1749583854162,279.92,0.00016767,2]
[365293621,1749583854197,490.0,0.00016438,2]
[365293622,1749583854234,490.0,0.00016602,2]
[365293623,1749583854269,490.0,0.00016767,2]
[365293624,1749583854299,490.0,0.00016931,2]
[365293625,1749583854333,490.0,0.00017095,2]
[365293626,1749583854487,534.5134549,0.0001726,2]
[365293627,1749583856366,490.0,0.00016438,2]
[365293628,1749583856525,480.0,0.00016438,2]
[365293629,1749583856615,490.0,0.00016602,2]
[365293630,1749583856890,480.0,0.00016438,2]
[365293637,1749583858782,497.77406874,0.00016438,2]
[365293638,1749583859883,521.65199158,0.00016438,2]
[365293639,1749583859942,480.0,0.00016438,2]
[365293640,1749583860422,480.0,0.00016438,2]
[365293641,1749583861367,490.0,0.00016438,2]
[365293642,1749583861618,490.0,0.00016602,2]
[365293643,1749583861867,490.0,0.00016767,2]
[365293644,1749583861966,490.0,0.00016438,2]
[365293645,1749583862072,480.0,0.00016438,2]
[365293646,1749583862226,490.0,0.00016931,2]
[365293647,1749583862253,490.0,0.00016602,2]
[365293648,1749583862418,490.0,0.00017095,2]
[365293649,1749583862560,284.31,0.00016767,2]
[365293650,1749583862691,490.0,0.0001726,2]
[365293651,1749583862961,490.0,0.00017424,2]
[365293652,1749583864527,480.0,0.00016438,2]
[365293653,1749583864713,490.0,0.00016438,2]
[365293654,1749583864958,490.0,0.00016602,2]
[365293655,1749583865212,490.0,0.00016767,2]
[365293656,1749583865814,490.0,0.00016931,2]
[365293657,1749583866077,232.69,0.00017095,2]
[365293658,1749583869013,480.0,0.00016438,2]
[365293659,1749583871773,480.0,0.00016438,2]
[365293660,1749583873084,490.0,0.00016438,2]
[365293661,1749583873366,490.0,0.00016602,2]
[365293662,1749583873618,167.43247281,0.00016767,2]
[365293663,1749583876235,251.19148566,0.00016438,2]
[365293664,1749583879256,480.0,0.00016438,2]
[365293665,1749583881655,500.0,0.00016164,2]
[365293666,1749583881892,480.0,0.00016438,2]
[365293667,1749583883978,480.0,0.00016438,2]
[365293668,1749583891154,480.0,0.00016438,2]
[365293669,1749583900410,490.0,0.00016438,2]
[365293670,1749583903189,490.0,0.00016438,2]
[365293671,1749583904504,480.0,0.00016438,2]
[365293672,1749583906879,490.0,0.00016438,2]
[365293673,1749583907063,356.14,0.00016602,2]
[365293674,1749583908601,480.0,0.00016438,2]
[365293675,1749583916234,546.75831375,0.00016438,2]
[365293676,1749583918439,574.75,0.00016438,2]
[365293677,1749583920838,480.0,0.00016438,2]
[365293678,1749583921418,480.0,0.00016438,2]
[365293679,1749583922907,480.0,0.00016438,2]
[365293681,1749583924822,490.0,0.00016438,2]
[365293682,1749583930357,490.0,0.00016438,2]
[365293683,1749583930616,535.86,0.00016602,2]
[365293684,1749583935909,440.0,0.00016438,2]
[365293685,1749583938477,480.0,0.00016438,2]
[365293686,1749583942441,480.0,0.00016438,2]
[365293687,1749583945734,480.0,0.00016438,2]
[365293688,1749583947895,480.0,0.00016438,2]
[365293689,1749583948192,465.58895021,0.000172,2]
[365293690,1749583949907,480.0,0.00016438,2]
[365293691,1749583950414,480.0,0.00016438,2]
[365293692,1749583956049,1821.05,0.00016438,2]
[365293693,1749583956712,1821.05,0.00016602,2]
[365293694,1749583956971,1821.05,0.00016767,2]
[365293695,1749583957466,490.0,0.00016438,2]
[365293696,1749583957570,1821.05,0.00016931,2]
[365293697,1749583957855,1821.05,0.00017095,2]
[365293698,1749583958107,1821.05,0.0001726,2]
[365293699,1749583958389,1821.05,0.00017424,2]
[365293700,1749583959767,490.0,0.00016438,2]
[365293701,1749583960049,490.0,0.00016602,2]
[365293702,1749583960309,480.87992653,0.00016767,2]
[365293703,1749583964551,204.04374334,0.00016438,2]
[365293704,1749583966162,597.1044427,0.00016438,2]
[365293705,1749583971081,532.8018645,0.00016438,2]
[365293706,1749583974822,490.0,0.00016438,2]
[365293707,1749583975104,490.0,0.00016602,2]
[365293708,1749583975348,490.0,0.00016767,2]
[365293709,1749583975705,414.57,0.00016931,2]
[365293710,1749583979119,490.0,0.00016438,2]
[365293711,1749583979357,490.0,0.00016602,2]
[365293712,1749583979597,176.16,0.00016767,2]
[365293713,1749583988912,480.0,0.00016438,2]
[365293714,1749583990191,490.0,0.00016438,2]
[365293715,1749583991380,656.60003299,0.00016438,2]
[365293717,1749583993820,490.0,0.00016438,2]
[365293718,1749583994103,490.0,0.00016602,2]
[365293719,1749583994353,490.0,0.00016767,2]
[365293720,1749583994606,196.85,0.00016931,2]
[365293721,1749584002246,480.0,0.00016438,2]
[365293722,1749584005075,490.0,0.00016438,2]
[365293723,1749584005326,412.97,0.00016602,2]
[365293724,1749584006105,490.0,0.00016438,2]
[365293725,1749584013270,480.0,0.00016438,2]
[365293726,1749584015289,480.0,0.00016438,2]
[365293727,1749584016631,480.0,0.00016438,2]
[365293728,1749584020675,490.0,0.00016438,2]
[365293729,1749584020962,490.0,0.00016602,2]
[365293730,1749584021288,490.0,0.00016767,2]
[365293731,1749584021560,586.63506184,0.00016931,2]
[365293732,1749584021604,490.0,0.00016438,2]
[365293733,1749584021876,490.0,0.00016602,2]
[365293734,1749584022138,490.0,0.00016767,2]
[365293735,1749584022384,490.0,0.00016931,2]
[365293736,1749584022645,490.0,0.00017095,2]
[365293737,1749584023067,410.34525331,0.0001726,2]
[365293738,1749584023601,480.0,0.00016438,2]
[365293739,1749584024345,490.0,0.00016438,2]
[365293740,1749584024626,490.0,0.00016602,2]
[365293741,1749584024922,490.0,0.00016767,2]
[365293742,1749584025196,490.0,0.00016931,2]
[365293743,1749584025441,480.0,0.00017095,2]
[365293744,1749584025472,490.0,0.00016438,2]
[365293747,1749584030288,490.0,0.00016438,2]
[365293748,1749584030555,490.0,0.00016602,2]
[365293749,1749584031002,490.0,0.00016438,2]
[365293750,1749584031050,610.86,0.00016767,2]
[365293751,1749584031079,480.0,0.00016438,2]
[365293752,1749584031109,470.0,0.00016602,2]
[365293754,1749584034021,480.0,0.00016438,2]
[365293755,1749584038120,490.0,0.00016438,2]
[365293756,1749584038380,387.03,0.00016602,2]
[365293757,1749584039647,490.0,0.00016438,2]
[365293758,1749584039907,490.0,0.00016602,2]
[365293759,1749584040181,490.0,0.00016767,2]
[365293760,1749584040434,564.52,0.00016931,2]
[365293761,1749584042192,480.0,0.00016438,2]
[365293762,1749584042277,490.0,0.00016438,2]
[365293763,1749584042524,490.0,0.00016602,2]
[365293764,1749584042798,490.0,0.00016767,2]
[365293765,1749584042914,480.0,0.00016438,2]
[365293766,1749584043046,490.0,0.00016931,2]
[365293767,1749584043307,490.0,0.00017095,2]
[365293768,1749584043552,490.0,0.0001726,2]
[365293769,1749584043797,490.0,0.00017424,2]
[365293770,1749584046610,1000.0,0.00016438,2]
[365293771,1749584046981,490.0,0.00016438,2]
[365293772,1749584047218,391.92,0.00016602,2]
[365293773,1749584048001,480.0,0.00016438,2]
[365293774,1749584048490,480.0,0.00016438,2]
[365293775,1749584048920,490.0,0.00016438,2]
[365293776,1749584049516,490.0,0.00016602,2]
[365293777,1749584049786,490.0,0.00016767,2]
[365293778,1749584049992,490.0,0.00016438,2]
[365293779,1749584050027,490.0,0.00016931,2]
[365293780,1749584050256,490.0,0.00016602,2]
[365293781,1749584050286,490.0,0.00017095,2]
[365293782,1749584050526,468.08,0.0001726,2]
[365293783,1749584052002,490.0,0.00016438,2]
[365293784,1749584052120,530.82,0.00016602,2]
[365293785,1749584055880,480.0,0.00016438,2]
[365293786,1749584055929,480.0,0.00016438,2]
[365293787,1749584059652,319.69765715,0.00016438,2]
[365293788,1749584060519,490.0,0.00016438,2]
[365293789,1749584060790,485.63,0.00016602,2]
[365293790,1749584063638,180.0,0.00016438,2]
[365293791,1749584066594,480.0,0.00016438,2]
[365293792,1749584069137,490.0,0.00016438,2]
[365293793,1749584069366,490.0,0.00016602,2]
[365293794,1749584072010,490.0,0.00016438,2]
[365293795,1749584072453,470.11,0.00016602,2]
[365293796,1749584074292,480.0,0.00016438,2]
[365293797,1749584074413,490.0,0.00016438,2]
[365293798,1749584074764,490.0,0.00016602,2]
[365293799,1749584075952,490.0,0.00016438,2]
[365293800,1749584076129,490.0,0.00016438,2]
[365293801,1749584076224,470.0,0.00016602,2]
[365293802,1749584076380,490.0,0.00016602,2]
[365293803,1749584076626,490.0,0.00016767,2]
[365293804,1749584076892,490.0,0.00016931,2]
[365293805,1749584076928,490.0,0.00016438,2]
[365293806,1749584077135,220.23,0.00017095,2]
[365293807,1749584077531,490.0,0.00016602,2]
[365293808,1749584078575,490.0,0.00016438,2]
[365293809,1749584078832,180.41,0.00016602,2]
[365293811,1749584081107,480.0,0.00016438,2]
[365293812,1749584083863,490.0,0.00016438,2]
[365293813,1749584084119,490.0,0.00016602,2]
[365293814,1749584084736,490.0,0.00016767,2]
[365293815,1749584084998,490.0,0.00016931,2]
[365293816,1749584085261,490.0,0.00016438,2]
[365293817,1749584085538,490.0,0.00016602,2]
[365293818,1749584085800,490.0,0.00016767,2]
[365293819,1749584086072,490.0,0.00016931,2]
[365293820,1749584086349,451.06,0.00017095,2]
[365293821,1749584088183,490.0,0.00016438,2]
[365293822,1749584088409,490.0,0.00016602,2]
[365293823,1749584092208,542.48620856,0.00016438,2]
[365293824,1749584093224,480.0,0.00016438,2]
[365293825,1749584094249,490.0,0.00016438,2]
[365293826,1749584094356,490.0,0.00016438,2]
[365293827,1749584094636,490.0,0.00016602,2]
[365293828,1749584094865,490.0,0.00016602,2]
[365293829,1749584094898,490.0,0.00016767,2]
[365293830,1749584095133,478.96670728,0.00016767,2]
[365293831,1749584095376,490.0,0.00016931,2]
[365293834,1749584095658,490.0,0.00017095,2]
[365293835,1749584095706,480.0,0.00016438,2]
[365293836,1749584095912,490.0,0.0001726,2]
[365293837,1749584096175,388.11,0.00017424,2]
[365293838,1749584096465,480.0,0.00016438,2]
[365293839,1749584097399,490.0,0.00016438,2]
[365293840,1749584097535,480.0,0.00016438,2]
[365293841,1749584097686,470.0,0.00016602,2]
[365293842,1749584098427,490.0,0.00016438,2]
[365293843,1749584098689,490.0,0.00016602,2]
[365293844,1749584098963,490.0,0.00016767,2]
[365293845,1749584099226,490.0,0.00016931,2]
[365293846,1749584099479,613.54654228,0.00017095,2]
[365293847,1749584099594,500.0,0.00016164,2]
[365293848,1749584103919,490.0,0.00016438,2]
[365293849,1749584104173,470.0,0.00016602,2]
[365293850,1749584104325,480.0,0.00016438,2]
[365293851,1749584105404,480.0,0.00016438,2]
[365293852,1749584106028,603.54,0.00016438,2]
[365293853,1749584106996,200.0,0.00017424,2]
[365293854,1749584107768,480.0,0.00016438,2]
[365293855,1749584108219,405.54700603,0.00016438,2]
[365293856,1749584108785,490.0,0.00016438,2]
[365293857,1749584109058,490.0,0.00016602,2]
[365293858,1749584109317,460.0,0.00016767,2]
[365293859,1749584112963,484.13745827,0.00016438,2]
[365293860,1749584117161,517.2006859,0.00016438,2]
[365293861,1749584118698,591.05,0.00016438,2]
[365293862,1749584120576,480.0,0.00016438,2]
[365293863,1749584121033,490.0,0.00016438,2]
[365293864,1749584121314,480.54688031,0.00016602,2]
[365293865,1749584122884,480.0,0.00016438,2]
[365293866,1749584129496,490.0,0.00016438,2]
[365293867,1749584129749,483.15229439,0.00016602,2]
[365293868,1749584131567,480.0,0.00016438,2]
[365293869,1749584131720,490.0,0.00016438,2]
[365293870,1749584132000,490.0,0.00016602,2]
[365293871,1749584132078,490.0,0.00016438,2]
[365293872,1749584132235,480.0,0.00016438,2]
[365293873,1749584132264,460.0,0.00016767,2]
[365293874,1749584132330,470.0,0.00016602,2]
[365293875,1749584133501,486.02425793,0.00016438,2]
[365293876,1749584133531,490.0,0.00016438,2]
[365293877,1749584134119,470.0,0.00016602,2]
[365293878,1749584138071,490.0,0.00016438,2]
[365293879,1749584138314,470.0,0.00016602,2]
[365293880,1749584142463,490.0,0.00016438,2]
[365293881,1749584142493,490.0,0.00016438,2]
[365293882,1749584142729,490.0,0.00016602,2]
[365293883,1749584142758,490.0,0.00016602,2]
[365293884,1749584142996,490.0,0.00016767,2]
[365293885,1749584143030,460.0,0.00016767,2]
[365293886,1749584143288,490.0,0.00016931,2]
[365293887,1749584143900,490.0,0.00016438,2]
[365293888,1749584143941,490.0,0.00017095,2]
[365293889,1749584144159,470.0,0.00016602,2]
[365293890,1749584144194,567.28,0.0001726,2]
[365293891,1749584144495,490.0,0.00016438,2]
[365293892,1749584145003,490.0,0.00016602,2]
[365293893,1749584145239,490.0,0.00016767,2]
[365293894,1749584146676,480.0,0.00016438,2]
[365293895,1749584148169,480.0,0.00016438,2]
[365293896,1749584148946,490.0,0.00016438,2]
[365293897,1749584149190,490.0,0.00016602,2]
[365293898,1749584149476,490.0,0.00016767,2]
[365293899,1749584149571,490.0,0.00016438,2]
[365293900,1749584149740,232.17,0.00016931,2]
[365293901,1749584150699,480.0,0.00016438,2]
[365293902,1749584150961,490.0,0.00016438,2]
[365293903,1749584151264,470.0,0.00016602,2]
[365293904,1749584152070,490.0,0.00016438,2]
[365293905,1749584152309,490.0,0.00016438,2]
[365293906,1749584152346,470.0,0.00016602,2]
[365293907,1749584152561,470.0,0.00016602,2]
[365293908,1749584154387,246.02093134,0.00017489,2]
[365293909,1749584154469,480.0,0.00016438,2]
[365293910,1749584156258,490.0,0.00016438,2]
[365293911,1749584156522,470.0,0.00016602,2]
[365293912,1749584157628,480.0,0.00016438,2]
[365293913,1749584159766,460.0,0.00016438,2]
[365293914,1749584161760,464.29161221,0.00016438,2]
[365293915,1749584162904,490.0,0.00016438,2]
[365293916,1749584163164,490.0,0.00016602,2]
[365293917,1749584163766,460.0,0.00016767,2]
[365293918,1749584167578,490.0,0.00016438,2]
[365293919,1749584167821,470.0,0.00016602,2]
[365293920,1749584168065,490.0,0.00016438,2]
[365293921,1749584168847,490.0,0.00016438,2]
[365293922,1749584169109,490.0,0.00016602,2]
[365293923,1749584169376,490.0,0.00016767,2]
[365293924,1749584169616,490.0,0.00016931,2]
[365293925,1749584169857,490.0,0.00017095,2]
[365293926,1749584170149,490.0,0.0001726,2]
[365293927,1749584170599,383.4093467,0.00017424,2]
[365293928,1749584172168,490.0,0.00016438,2]
[365293929,1749584172407,490.0,0.00016602,2]
[365293930,1749584172664,490.0,0.00016767,2]
[365293931,1749584172904,490.0,0.00016931,2]
[365293932,1749584176981,480.0,0.00016438,2]
[365293933,1749584180479,490.0,0.00016438,2]
[365293934,1749584180745,470.0,0.00016602,2]
[365293935,1749584182583,480.0,0.00016438,2]
[365293936,1749584186637,480.0,0.00016438,2]
[365293937,1749584187818,490.0,0.00016438,2]
[365293938,1749584188075,490.0,0.00016602,2]
[365293939,1749584188321,490.0,0.00016767,2]
[365293940,1749584188567,490.0,0.00016931,2]
[365293941,1749584188833,490.0,0.00017095,2]
[365293942,1749584189115,490.0,0.0001726,2]
[365293943,1749584189396,490.0,0.00017424,2]
[365293944,1749584190798,490.0,0.00016438,2]
[365293945,1749584191051,490.0,0.00016602,2]
[365293946,1749584191327,490.0,0.00016767,2]
[365293947,1749584191560,490.0,0.00016438,2]
[365293948,1749584191593,490.0,0.00016931,2]
[365293949,1749584191811,287.0781927,0.00016602,2]
[365293950,1749584191842,490.0,0.00017095,2]
[365293951,1749584191904,490.0,0.00016438,2]
[365293952,1749584192157,490.0,0.0001726,2]
[365293953,1749584192187,490.0,0.00016602,2]
[365293954,1749584192337,490.0,0.00017424,2]
[365293955,1749584192755,490.0,0.00016767,2]
[365293956,1749584193007,490.0,0.00016931,2]
[365293957,1749584194135,480.0,0.00016438,2]
[365293958,1749584195591,480.0,0.00016438,2]
[365293959,1749584195948,490.0,0.00016438,2]
[365293960,1749584196387,490.0,0.00016602,2]
[365293961,1749584196471,260.79326812,0.00016767,2]
[365293962,1749584196499,229.20673188,0.00016767,2]
[365293963,1749584196766,490.0,0.00016931,2]
[365293964,1749584197024,490.0,0.00017095,2]
[365293965,1749584197291,490.0,0.0001726,2]
[365293966,1749584197532,490.0,0.00017424,2]
[365293967,1749584205517,490.0,0.00016438,2]
[365293968,1749584205881,490.0,0.00016438,2]
[365293969,1749584206131,490.0,0.00016602,2]
[365293970,1749584206164,490.0,0.00016602,2]
[365293971,1749584206602,490.0,0.00016767,2]
[365293972,1749584206638,585.04,0.00016767,2]
[365293973,1749584206670,490.0,0.00016931,2]
[365293974,1749584207295,490.0,0.00017095,2]
[365293975,1749584207555,490.0,0.0001726,2]
[365293976,1749584209147,480.0,0.00016438,2]
[365293977,1749584212811,490.0,0.00016438,2]
[365293978,1749584213052,490.0,0.00016602,2]
[365293979,1749584213303,490.0,0.00016767,2]
[365293980,1749584213556,331.0,0.00016931,2]
[365293981,1749584213814,490.0,0.00016438,2]
[365293982,1749584214086,185.08340212,0.00016602,2]
[365293983,1749584214838,596.91236922,0.00016438,2]
[365293984,1749584219289,2148.24,0.00016438,2]
[365293985,1749584219561,2148.24,0.00016602,2]
[365293986,1749584219999,2148.24,0.00016767,2]
[365293987,1749584220281,2148.24,0.00016931,2]
[365293988,1749584220529,2148.24,0.00017095,2]
[365293989,1749584220799,2148.24,0.0001726,2]
[365293990,1749584221116,2148.24,0.00017424,2]
[365293991,1749584228406,490.0,0.00016438,2]
[365293992,1749584228674,490.0,0.00016602,2]
[365293993,1749584228918,490.0,0.00016767,2]
[365293994,1749584229171,490.0,0.00016931,2]
[365293995,1749584229418,490.0,0.00017095,2]
[365293996,1749584229677,490.0,0.0001726,2]
[365293997,1749584235438,200.0,0.00016438,2]
[365293998,1749584238427,490.0,0.00016438,2]
[365293999,1749584238678,490.0,0.00016602,2]
[365294000,1749584238976,490.0,0.00016767,2]
[365294001,1749584239432,490.0,0.00016931,2]
[365294002,1749584239690,490.0,0.00017095,2]
[365294003,1749584239936,490.0,0.0001726,2]
[365294004,1749584240207,312.02,0.00017424,2]
[365294005,1749584245982,480.0,0.00016438,2]
[365294006,1749584246149,490.0,0.00016438,2]
[365294007,1749584246835,490.0,0.00016602,2]
[365294008,1749584247079,490.0,0.00016767,2]
[365294009,1749584247322,490.0,0.00016931,2]
[365294010,1749584247606,490.0,0.00017095,2]
[365294011,1749584248192,490.0,0.0001726,2]
[365294012,1749584248445,490.0,0.00017424,2]
[365294013,1749584251225,230.33092419,0.00016438,2]
[365294014,1749584258789,490.0,0.00016438,2]
[365294015,1749584258994,245.74,0.00016438,2]
[365294016,1749584259033,490.0,0.00016602,2]
[365294017,1749584259267,490.0,0.00016767,2]
[365294018,1749584259548,490.0,0.00016931,2]
[365294019,1749584259818,490.0,0.00017095,2]
[365294020,1749584260086,490.0,0.0001726,2]
[365294021,1749584260357,490.0,0.00017424,2]
[365294022,1749584262238,480.0,0.00016438,2]
[365294023,1749584270766,490.0,0.00016438,2]
[365294024,1749584271029,490.0,0.00016602,2]
[365294025,1749584271289,490.0,0.00016767,2]
[365294026,1749584271557,490.0,0.00016931,2]
[365294027,1749584272203,490.0,0.00017095,2]
[365294028,1749584272251,490.0,0.0001726,2]
[365294029,1749584272311,490.0,0.00017424,2]
[365294030,1749584277502,173.65247198,0.00017489,2]
[365294031,1749584277534,490.0,0.00016438,2]
[365294032,1749584277802,490.0,0.00016602,2]
[365294033,1749584278067,490.0,0.00016767,2]
[365294034,1749584278525,490.0,0.00016931,2]
[365294035,1749584278916,490.0,0.00017095,2]
[365294036,1749584279198,490.0,0.0001726,2]
[365294037,1749584279443,490.0,0.00017424,2]